Cogmind - Beta 13 *** ADVENTURER MODE // 2024.04.01 @ 21:34:41 Player: Tav Result: Destroyed by YI-UF0 with YI-UF0's Doublenader Performance ------------- Evolutions (0) 0 Regions Visited (4) 800 Robots Destroyed (28) 140 Value Destroyed (582) 582 Prototype IDs (2) 40 Alien Tech Used (0) 0 Bonus (300) 300 TOTAL SCORE: 1862 Bonus ------- Aligned with FarCom 300 Cogmind --------- Core Integrity 0/250 Matter 241/300 Energy 85/100 System Corruption 0% Temperature Hot (233) Movement Core (200) Ox3 Location -9/Mines Parts ------- > --- POWER (1) -------- (None) > --- PROPULSION (2) --- (None) > --- UTILITY (2) ------ Medium Storage Unit Modified TNC > --- WEAPON (2) ------- (None) > --- INVENTORY (10) --- Cooled Ion Engine Nuclear Core Weight Redist. System Structural Scanner Targeting Computer ECM Suite Utility Shielding Medium Armor Plating Recalibrator Peak State ------------ > --- POWER ------------ Light Angular Momentum Engine > --- PROPULSION ------- Light Treads Light Treads > --- UTILITY ---------- Medium Storage Unit Modified TNC > --- WEAPON ----------- Beamcaster Assault Rifle > --- INVENTORY -------- Cooled Ion Engine Nuclear Core Weight Redist. System Structural Scanner Targeting Computer ECM Suite Utility Shielding Recalibrator Grenade Launcher [Rating: 21] Favorites ----------- Power Cooled Ion Engine Engine Cooled Ion Engine Power Core Light Nuclear Core Propulsion Light Treads Treads Light Treads Utility Medium Storage Unit Device Terrain Scanner Storage Medium Storage Unit Processor Signal Interpreter Protection Medium Armor Plating Weapon Assault Rifle Energy Gun Beamcaster Ballistic Gun Assault Rifle Launcher Grenade Launcher Build | -11 -10 -10 -10 -9 ------- Run | Yrd Mat Min Exi Min Slots Evolved . | . . . . . Power . | . . . . . Propulsion . | . . . . . Utility . | . . . . . Weapon . | . . . . . Parts Attached 23 | 6 8 5 1 3 Power 6 | 1 3 2 . . Engine 5 | 1 3 1 . . Core 1 | . . 1 . . Reactor . | . . . . . Propulsion 2 | 2 . . . . Treads 2 | 2 . . . . Leg . | . . . . . Wheel . | . . . . . Hover . | . . . . . Flight . | . . . . . Utility 8 | 1 4 2 1 . Device 1 | . . 1 . . Storage 2 | 1 1 . . . Processor 3 | . 2 . 1 . Hackware . | . . . . . Protection 2 | . 1 1 . . Artifact . | . . . . . Weapon 7 | 2 1 1 . 3 Energy Gun 1 | . . 1 . . Energy Cannon . | . . . . . Ballistic Gun 3 | 2 . . . 1 Ballistic Cannon . | . . . . . Launcher 3 | . 1 . . 2 Special Weapon . | . . . . . Impact Weapon . | . . . . . Slashing Weapon . | . . . . . Piercing Weapon . | . . . . . Special Melee Weapon . | . . . . . Unidentified Prototypes 2 | . 1 . 1 . Parts Lost 6 | . . . . 6 Power 1 | . . . . 1 Propulsion 2 | . . . . 2 Utility . | . . . . . Weapon 3 | . . . . 3 Highest Loss Streak 6 | . . . . 6 To Critical Strikes . | . . . . . Average Slot Usage (%) 98 | . 97 100 100 90 Engine 13 | . 14 11 14 12 Treads 27 | . 28 28 28 21 Device 2 | . . 9 . . Storage 14 | . 14 14 14 14 Processor 6 | . 7 1 8 14 Protection 4 | . 4 3 5 . Energy Gun 5 | . . 3 14 14 Ballistic Gun 16 | . 19 14 14 7 Launcher 6 | . 8 10 . 4 Naked Turns . | . . . . . Heaviest Build 33 | 11 25 33 33 27 Greatest Support 40 | 40 40 40 40 40 Greatest Overweight (x) . | . . . . . Average Overweight (x) . | . . . . . Largest Inventory Capacity 10 | 8 10 10 10 10 Average Capacity 9 | 7 8 10 10 10 Most Carried 10 | 5 8 10 10 10 Average Carried 8 | 1 6 8 9 9 Final Capacity 10 | 8 10 10 10 10 Final Carried 10 | 1 8 10 10 9 Class Distribution -------------------- 100% | Mutant Dominant Class ---------------- Mutant | -10/Materials Mutant | -10/Mines Mutant | -10/Exiles Mutant | -9/Mines Resources | -11 -10 -10 -10 -9 ----------- Run | Yrd Mat Min Exi Min Matter Collected 768 | 226 340 176 . 26 Remotely . | . . . . . Salvage Created 809 | . 390 283 . 136 Parts 53 | . 40 9 . 4 Haulers Intercepted 2 | . 2 . . . Recyclers Shooed . | . . . . . Parts Field Recycled . | . . . . . Retrieved Matter . | . . . . . Parts Self-Destructed . | . . . . . Prevented . | . . . . . Kills | -11 -10 -10 -10 -9 ------- Run | Yrd Mat Min Exi Min Combat Hostiles Destroyed 17 | . 8 6 . 3 Guns 13 | . 7 4 . 2 AOE 4 | . 1 2 . 1 Classes Destroyed 8 | . 7 1 . . Worker 1 | . 1 . . . Builder 4 | . 3 1 . . Hauler 2 | . 2 . . . Mechanic 1 | . 1 . . . Watcher 3 | . 3 . . . Swarmer 7 | . 6 1 . . Grunt 9 | . 2 4 . 3 Sentry 1 | . . 1 . . Best Kill Streak 6 | . 6 3 . 2 Combat Bots Only 3 | . 3 2 . 2 Max Kills in Single Turn 4 | . 4 2 . 1 Gunslinging . | . . . . . Exploded 1 | . 1 1 . 1 Melee . | . . . . . Uniques/NPCs Destroyed . | . . . . . Combat | -11 -10 -10 -10 -9 -------- Run | Yrd Mat Min Exi Min Hostile Shots Fired 84 | . 23 25 . 36 Missed 24 | . 8 10 . 6 Damage Taken 1003 | . 154 174 . 675 Core 251 | . 26 . . 225 Absorbed by Shields . | . . . . . Ignored by Resistances 296 | . 47 51 . 198 Core Remaining (%) 100 | 100 . . . . Volleys Fired 83 | . 45 24 . 14 Largest 2 | . 2 2 . 2 Hottest 105 | . 50 95 . 105 Shots Fired 142 | . 83 32 . 27 Gun 125 | . 76 27 . 22 Cannon . | . . . . . Launcher 17 | . 7 5 . 5 Special . | . . . . . Kinetic 108 | . 76 24 . 8 Thermal 17 | . . 3 . 14 Explosive 17 | . 7 5 . 5 Electromagnetic . | . . . . . Robot Hit Streak 26 | . 10 26 . 9 Robot Miss Streak 3 | . 3 2 . 2 Penetration Max . | . . . . . Secondary Targets 1 | . . . . 1 Max Gunslinging Chain 1 | . . . . 1 Shots Hit Robots 102 | . 55 28 . 19 Core Hits 52 | . 29 12 . 11 Critical Kills 1 | . 1 . . . Critical Parts Destroyed . | . . . . . Critical Strikes 3 | . 1 . . 2 Burn 2 | . . . . 2 Destroy 1 | . 1 . . . Melee Attacks . | . . . . . Impact . | . . . . . Slashing . | . . . . . Piercing . | . . . . . Sneak Attacks . | . . . . . Combat Hostiles . | . . . . . Follow-up Attacks . | . . . . . Damage Inflicted 1898 | . 926 593 . 379 Guns 1206 | . 594 309 . 303 Cannons . | . . . . . Explosions 688 | . 328 284 . 76 Melee . | . . . . . Ramming 4 | . 4 . . . Kinetic 935 | . 594 267 . 74 Thermal 271 | . . 42 . 229 Explosive 688 | . 328 284 . 76 Electromagnetic . | . . . . . Impact . | . . . . . Slashing . | . . . . . Piercing . | . . . . . Highest Corruption . | . . . . . Average Corruption . | . . . . . Corruption Purged . | . . . . . Corruption Blocked . | . . . . . Overload Shots . | . . . . . Overflow Damage . | . . . . . Projectiles . | . . . . . Explosions . | . . . . . Melee . | . . . . . Knockbacks . | . . . . . Impact . | . . . . . Kinetic . | . . . . . Secondary . | . . . . . Self-Inflicted Damage 29 | . 17 . . 12 Shots 4 | . 1 . . 3 Rammed 1 | . 1 . . . Targets Rammed 1 | . 1 . . . Kicked . | . . . . . Crushed . | . . . . . Highest Temperature 233 | . 15 144 . 233 Average Temperature 73 | . 6 53 . 115 Received Heat Transfer 216 | . 54 81 . 81 Siege Activations . | . . . . . Robots Corrupted . | . . . . . Combat Hostiles . | . . . . . Parts Fried . | . . . . . Impact Corruptions . | . . . . . Robots Melted . | . . . . . Combat Hostiles . | . . . . . Parts Melted 2 | . . 1 . 1 Heat Transferred 629 | . . 74 . 555 Parts Sabotaged . | . . . . . Parts Stolen . | . . . . . Parts Stripped . | . . . . . Power Chain Reactions . | . . . . . Alert | -11 -10 -10 -10 -9 ------- Run | Yrd Mat Min Exi Min Peak Influence 165 | . 165 106 . 91 Initial . | . . . . . Average 64 | . 66 67 . 56 Maximum Alert Level . | . . . . . Low Security (%) 100 | 100 100 100 . 100 Level 1 . | . . . . . Level 2 . | . . . . . Level 3 . | . . . . . Level 4 . | . . . . . Level 5 . | . . . . . High Security . | . . . . . Max Security . | . . . . . Squads Dispatched . | . . . . . Investigation . | . . . . . Extermination . | . . . . . Reinforcement . | . . . . . Assault . | . . . . . Garrison . | . . . . . Intercept . | . . . . . Searches Triggered . | . . . . . Construction Impeded . | . . . . . Haulers Reinforced . | . . . . . Active Scanning Responses . | . . . . . Cargo Convoy Interrupts . | . . . . . Stealth | -11 -10 -10 -10 -9 --------- Run | Yrd Mat Min Exi Min Distress Signals 2 | . 2 . . . Communications Jammed . | . . . . . Distress Signals . | . . . . . Times Spotted 27 | . 13 8 . 6 Peak Tracking Total 3 | . 3 3 . 3 Tactical Retreats 2 | . 1 1 . . Traps | -11 -10 -10 -10 -9 ------- Run | Yrd Mat Min Exi Min Traps Triggered 1 | . 1 . . . Indirectly . | . . . . . Trap Hack Attempts . | . . . . . Triggered . | . . . . . Disarmed . | . . . . . Reprogrammed . | . . . . . Reused . | . . . . . Traps Extracted . | . . . . . Installed . | . . . . . Triggered . | . . . . . Machines | -11 -10 -10 -10 -9 ---------- Run | Yrd Mat Min Exi Min Machines Disabled 1 | . . 1 . . Max in Single Turn 1 | . . 1 . . Machines Repaired . | . . . . . Machines Dismantled . | . . . . . Machines Sabotaged . | . . . . . Overloaded Fab Kills . | . . . . . Hacking | -11 -10 -10 -10 -9 --------- Run | Yrd Mat Min Exi Min Machines Accessed 4 | . 2 1 1 . Terminals 3 | . 2 1 . . Fabricators . | . . . . . Repair Stations . | . . . . . Recycling Units . | . . . . . Scanalyzers . | . . . . . Garrison Access . | . . . . . Total Hacks 18 | . 6 3 9 . Successful 17 | . 5 3 9 . Failed 1 | . 1 . . . Catastrophic . | . . . . . Database Lockouts . | . . . . . Manual 1 | . . . 1 . Terminals 9 | . 6 3 . . Fabricators . | . . . . . Repair Stations . | . . . . . Recycling Units . | . . . . . Scanalyzers . | . . . . . Garrison Access . | . . . . . Terminal Hacks 17 | . 5 3 9 . Record 13 | . 1 3 9 . Emergency Access Points 1 | . 1 . . . Transport Status 1 | . 1 . . . Hauler Manifests 1 | . 1 . . . Zone Layout 1 | . 1 . . . Fabricator Hacks . | . . . . . Repair Station Hacks . | . . . . . Recycling Unit Hacks . | . . . . . Scanalyzer . | . . . . . Garrison Access Hacks . | . . . . . Unauthorized Hacks . | . . . . . Terminals . | . . . . . Fabricators . | . . . . . Repair Stations . | . . . . . Recycling Units . | . . . . . Scanalyzers . | . . . . . Garrison Access . | . . . . . Data Cores Recovered . | . . . . . Used . | . . . . . Hacking Detections 2 | . 1 1 . . Full Trace Events 1 | . 1 . . . Feedback Events . | . . . . . Feedback Blocked . | . . . . . Robot Schematics Acquired . | . . . . . Robots Built . | . . . . . Authchips . | . . . . . Time . | . . . . . Total Robot Build Rating . | . . . . . Part Schematics Acquired . | . . . . . Parts Built . | . . . . . Authchips . | . . . . . Time . | . . . . . Total Part Build Rating . | . . . . . Parts Repaired . | . . . . . Time . | . . . . . Parts Recycled . | . . . . . Recycled Matter . | . . . . . Retrieved Matter . | . . . . . Retrieved Components . | . . . . . Parts Scanalyzed . | . . . . . Part Schematics Acquired . | . . . . . Parts Damaged . | . . . . . Bothacking | -11 -10 -10 -10 -9 ------------ Run | Yrd Mat Min Exi Min Used RIF Installer . | . . . . . Robots Hacked . | . . . . . Non-combat . | . . . . . Combat . | . . . . . Robot Hacks Applied . | . . . . . Relay Couplers Released . | . . . . . Fabnet Peak Effective % . | . . . . . Robots Rewired . | . . . . . Allies Hacked . | . . . . . Hacks Repelled . | . . . . . Allies | -11 -10 -10 -10 -9 -------- Run | Yrd Mat Min Exi Min Total Allies . | . . . . . Largest Group . | . . . . . Highest-Rated Group . | . . . . . Highest-Rated Ally . | . . . . . Total Orders . | . . . . . Ally Attacks . | . . . . . Total Damage . | . . . . . Kills . | . . . . . Allies Corrupted . | . . . . . Allies Melted . | . . . . . Intel | -11 -10 -10 -10 -9 ------- Run | Yrd Mat Min Exi Min Robot Analysis Total . | . . . . . Derelict Logs Recovered 2 | . . 2 . . Drone Launches . | . . . . . Drone Recoveries . | . . . . . Exploration | -11 -10 -10 -10 -9 ------------- Run | Yrd Mat Min Exi Min Turns Passed 3320 | 71 1411 866 882 90 Spaces Moved 1901 | 49 788 490 546 28 Core 17 | 17 . . . . Treads 1884 | 32 788 490 546 28 Legs . | . . . . . Wheels . | . . . . . Hover . | . . . . . Flight . | . . . . . Fastest Speed 50 | 50 160 160 160 160 Average Speed 159 | 121 160 160 160 160 Slowest Speed 160 | 160 160 160 160 160 Overloaded Moves . | . . . . . Propulsion Burnouts . | . . . . . Robots Hopped . | . . . . . Cave-ins Triggered . | . . . . . Exploration Rate (%) 58 | 3 83 93 93 19 Regions Visited 4 Branch Regions 3 Pre-discovered Areas . | . . . . . Known Exits Taken 1 | . 1 . . . Unknown Exits Taken 3 | 1 . 1 1 . Scrap Searched 1 | . . 1 . . Spaces Dug . | . . . . . Terrain Destroyed 98 | . 42 30 . 26 Melee . | . . . . . Projectile 1 | . . . . 1 AOE 97 | . 42 30 . 25 Terrain Rammed . | . . . . . Walls Destroyed . | . . . . . Machines Disabled . | . . . . . Actions | -11 -10 -10 -10 -9 --------- Run | Yrd Mat Min Exi Min Total 2063 | 60 862 540 556 45 Wait 10 | . . 10 . . Move 1897 | 48 787 489 545 28 Hop . | . . . . . Pick Up 30 | 6 14 7 3 . Fast Attach 3 | 1 1 1 . . Attach 8 | 5 1 . 1 1 Detach . | . . . . . Swap 12 | . 6 4 . 2 Drop 15 | . 7 5 3 . Fire 83 | . 45 24 . 14 Melee . | . . . . . Ram . | . . . . . Kick . | . . . . . Crush 1 | . 1 . . . Escape Stasis . | . . . . . Rewire 4 | . . . 4 . Trap . | . . . . . Miscellaneous . | . . . . . Route ------- -11/Scrapyard -10/Materials (discovered 6 exits: *Mat x3 / *Min x2 / *Sub) -10/Mines (discovered 3 exits: *Mat x2 / *Exi) -10/Exiles (discovered 2 exits: [*Min x2]) -9/Mines History --------- Turn | Location | Event 3 | -11/Scrapyard | Discovered new exit (range 15) 72 | -11/Scrapyard | Entered Materials 257 | -10/Materials | Discovered new exit (range 13) 300 | -10/Materials | Build established: Mutant 507 | -10/Materials | Discovered new exit (range 9) 739 | -10/Materials | Discovered new exit (range 11) 752 | -10/Materials | Discovered new exit (range 11) 894 | -10/Materials | Identified exit to Mines 979 | -10/Materials | Identified exit to Materials 1167 | -10/Materials | Discovered exit to Materials (range 14) 1395 | -10/Materials | Discovered new exit (range 10) 1409 | -10/Materials | Identified exit to Subcaves 1483 | -10/Materials | Entered Mines 1921 | -10/Mines | Discovered exit to Materials (range 9) 1951 | -10/Mines | Learned location of 1 exit from Materials 2066 | -10/Mines | Discovered exit to Materials (range 15) 2077 | -10/Mines | Joined a pair of Derelicts in attacking an 0b10 outpost 2201 | -10/Mines | Deemed a non-threat by the Exiles lab entrance 2201 | -10/Mines | Discovered new exit (range 5) 2233 | -10/Mines | Learned Materials machine intel 2349 | -10/Mines | Entered Exiles 2381 | -10/Exiles | Discovered new exit (range 14) 2433 | -10/Exiles | Met 8R-AWN 2461 | -10/Exiles | Met EX-HEX 2550 | -10/Exiles | Met EX-BIN 2573 | -10/Exiles | Aligned with FarCom system 2574 | -10/Exiles | Given EX-Vault access code 2611 | -10/Exiles | Opened EX-Vault 2624 | -10/Exiles | Found Prototype Processor 2662 | -10/Exiles | Warned to stay clear of 0b10 Research branches 2685 | -10/Exiles | Identified Modified TNC 2716 | -10/Exiles | Met EX-DEC 2785 | -10/Exiles | Discovered new exit (range 11) 2902 | -10/Exiles | Visited The Gauntlet 3231 | -10/Exiles | Left Exiles lab with Modified TNC 3231 | -10/Exiles | Entered Mines 3310 | -9/Mines | Core integrity fell below 50% 3316 | -9/Mines | Core integrity fell below 20% 3321 | -9/Mines | Destroyed by YI-UF0 with YI-UF0's Doublenader Last Messages --------------- G-34 Mercenary destroyed. YI-UF0: "Whaaaaaaaa!" The unstable cave ceiling collapses. Lgt. Treads destroyed. Assault Rifle destroyed. Lgt. Treads destroyed. The unstable cave ceiling collapses. T-07 Excavator is excavating. The unstable cave ceiling collapses. Lgt. Angular Momentum Engine destroyed. T-07 Excavator is excavating. The unstable cave ceiling collapses. K-01 Serf collects debris. T-07 Excavator is excavating. The unstable cave ceiling collapses. Destroyed Shock Absorption System. YI-UF0 suffers critical hit (Burn). The unstable cave ceiling collapses. Grenade Launcher destroyed. Beamcaster destroyed. Map ----- +----------------------------------------------------+ | | | | | | | | | | | | | ??????????????????????????????????????????????? | | ??????????????????????????????????????????????? | | ??????????????????????????????????????????????? | | ??????????????????????????????????????????????? | | ??????????????????????? #????????????????????? | | ??????????????????????? ????????????????????? | | ??????????????????????? ????????????????????? | | ??????????????????????? ????##??????????????? | | ??????????????????????? ??? #??????????????? | | ???????????????????????# ???t #??????????????? | | ??????????????????????## ### ????????? ?????? | | ?????????????????????## #[ ????????? #????? | | ????????????????????## * = ?????????? #????? | | ????????????????????? # ##???????? #????? | | ???????????????????### #???????? #????? | | ??????????????????## #g #??? ##?? #????? | | ??????????????????? ## #?? #????? | | ????????????????????# #?? #????? | | ??????????????????# ## #??? #????? | | ??????????????????# @ #????? #????? | | ?????????????????# ######### #????? | | ????????????????# ##??## #????? | | ???????????????# #### ! #????? | | ???????????????# %= #????? | | ???????????????# * ##????? | | ???????????????# ## #### ## %=#?????? | | ????????????# #??# ### ##????? | | ?????????????#### ###??# #?# ###??? | | ????????????????# ##????# ### ##?? | | ???????????????# #?????# #?? | | ???????????????# #### #?????#### #?? | | ???????????????## #???# #????????## #?? | | ????????????????## #????# #?????????## ##?? | | ?????????????????# ?????# #??????????######??? | | ?????????????????#??????# #??????????????????? | | ???????????????????????? #??????????????????? | | ???????????????????????? ??????????????????? | | ???????????????????????? ??????????????????? | | ???????????????????????? ??????????????????? | | ??????????????????????? ??????????????????? | | ???????????????????????? #??????????????????? | | ????????????????????????? ???????????????????? | | ??????????????????????????????????????????????? | | ??????????????????????????????????????????????? | +----------------------------------------------------+ Best States ------------- Heat Dissipation 25 Energy Generation 18 Energy Capacity 280 Matter Stores 300 Matter Capacity 300 Sight Range 16 Terrain Scan Range 14 Terrain Scan Density 10 Armor Coverage 225 Resistance: KI 20 Resistance: TH 20 Resistance: EX 20 Resistance: EM 20 Resistance: I 20 Resistance: S 20 Resistance: P 20 Evasion (%) 50 Recoil Reduction 2 Offensive Hacking 10 Item Schematics ----------------- None Robot Schematics ------------------ None Fabricated ------------ Nothing Alien Tech Used ----------------- None Achievements -------------- None Challenges ------------ None Game ------ Seed WaveArmageddonKit Manual? 0 Play Time 00:24:50 Cumulative 8.7 hours Start 2024.04.01 @ 21:04:42 End 2024.04.01 @ 21:34:41 Sessions 1 Manual Loads 0 Difficulty Adventurer Special Mode None Game No. 12 Rogue 0 Adventurer 12 Explorer 0 Win Type - Total 0 Types 0/0/0/0/0/0/0/0/0 Lore% 12 Gallery% 22 Achievement% 18 Wizard Run 0 Options --------- Layout 1 ASCII 0 Keyboard 0 Movement Mouse Keybinds 0 Fullscreen 1 Font 24/Smallcaps Map View 50x35 Zoom Use 0% Tactical HUD 0 Map Filters NONE Filters NONE Steam 1 RUN: 88f7be76-a3a1-49e3-8023-fc7543d18381